bitfinex-derivatives/quotes_BTCF0:USTF0_20260207
["timestamp","ask_amount","ask_price","bid_price","bid_amount"]
[1770441722572,0.58333333,71243.0,71222.0,0.18044824]
[1770441722766,0.58333333,71243.0,71223.0,0.37738392]
[1770441723067,0.58333333,71243.0,71224.0,0.21098468]
[1770441723363,0.58333333,71243.0,71225.0,0.21098468]
[1770441723568,0.58333333,71243.0,71226.0,0.21095535]
[1770441723757,0.014045,71246.0,71227.0,0.014049]
[1770441723957,0.59737733,71250.0,71227.0,0.014049]
[1770441724368,0.59737733,71250.0,71223.0,0.16639924]
[1770441724561,0.59737733,71250.0,71224.0,0.21094406]
[1770441724762,0.59737733,71250.0,71225.0,0.21094406]
[1770441724968,0.59737733,71250.0,71223.0,0.16639924]
[1770441724969,0.59737733,71250.0,71228.0,0.014048]
[1770441725373,0.59737833,71247.0,71224.0,0.014049]
[1770441725563,0.59737833,71247.0,71225.0,0.21094406]
[1770441725764,0.59737833,71247.0,71226.0,0.21094406]
[1770441725967,0.59737833,71247.0,71224.0,0.014049]
[1770441726168,0.59737833,71247.0,71226.0,0.014049]
[1770441726365,0.59737833,71247.0,71227.0,0.21094409]
[1770441726564,0.59737833,71247.0,71226.0,0.014049]
[1770441726766,0.59737833,71247.0,71227.0,0.21094409]
[1770441726966,0.58333333,71247.0,71229.0,0.014048]
[1770441727167,0.58333333,71247.0,71227.0,0.014049]
[1770441727364,0.58333333,71247.0,71228.0,0.21094408]
[1770441727559,0.0002,71252.0,71232.0,0.014048]
[1770441728167,0.014244,71252.0,71232.0,0.014048]
[1770441728367,0.59757733,71252.0,71232.0,0.014048]
[1770441728668,0.58333333,71240.0,71224.0,0.16639924]
[1770441728870,0.58333333,71240.0,71225.0,0.21095691]
[1770441729172,0.58333333,71251.0,71232.0,0.014048]
[1770441729966,0.58333333,71251.0,71233.0,0.2109364]
[1770441730161,0.0002,71255.0,71235.0,0.014047]
[1770441730367,0.0002,71255.0,71237.0,0.014047]
[1770441730562,0.0002,71255.0,71238.0,0.2109364]
[1770441730869,0.014043,71258.0,71239.0,0.37733564]
[1770441731071,0.59737533,71259.0,71240.0,0.37733564]
[1770441731271,0.59737533,71259.0,71241.0,0.2109364]
[1770441731572,0.58333333,71259.0,71243.0,0.014045]
[1770441731877,0.0002,71263.0,71244.0,0.2109364]
[1770441732071,0.0002,71263.0,71245.0,0.2109364]
[1770441732271,0.0002,71263.0,71246.0,0.21089528]
[1770441732471,0.0002,71263.0,71243.0,0.014045]
[1770441732673,0.0002,71263.0,71244.0,0.21089521]
[1770441732872,0.0002,71263.0,71228.0,0.28004092]
[1770441732873,0.58333333,71267.0,71246.0,0.014045]
[1770441733177,0.58333333,71267.0,71247.0,0.21089521]
[1770441733376,0.58333333,71267.0,71248.0,0.21089521]
[1770441733673,0.58333333,71267.0,71249.0,0.21089521]
[1770441733875,0.58333333,71267.0,71246.0,0.18044424]
[1770441733876,0.58333333,71267.0,71250.0,0.21089521]
[1770441734065,0.58333333,71267.0,71246.0,0.18044424]
[1770441734270,0.58333333,71267.0,71247.0,0.21088814]
[1770441734466,0.58333333,71267.0,71248.0,0.21088814]
[1770441734672,0.53066658,71258.0,71246.0,0.16639924]
[1770441734872,0.53066658,71256.0,71235.0,0.014047]
[1770441736376,0.53066658,71256.0,71232.0,0.53374837]
[1770441736776,0.53066658,71256.0,71238.0,0.014046]
[1770441737270,0.53066658,71256.0,71234.0,0.014047]
[1770441737473,0.0002,71262.0,71232.0,0.014048]
[1770441737474,0.53066658,71252.0,71232.0,0.014048]
[1770441738077,0.53066658,71252.0,71235.0,0.11140685]
[1770441738677,0.53066658,71250.0,71234.0,0.11140685]
[1770441740077,0.53066658,71245.0,71233.0,0.111439]
[1770441740272,0.53066658,71245.0,71223.0,0.014049]
[1770441740473,0.53066658,71259.0,71222.0,0.53474674]
[1770441740673,0.014043,71256.0,71235.0,0.014047]
[1770441740973,0.53066658,71259.0,71238.0,0.014046]
[1770441741173,0.43358204,71259.0,71238.0,0.014046]
[1770441741681,0.0002,71264.0,71238.0,0.57845223]
[1770441741874,0.54470758,71266.0,71244.0,0.014045]
[1770441742076,0.53066658,71266.0,71238.0,0.57845223]
[1770441742375,0.53066658,71266.0,71245.0,0.014045]
[1770441742779,0.001,71259.0,71245.0,0.014045]
[1770441743482,0.53066658,71266.0,71245.0,0.014045]
[1770441745885,0.53066658,71265.0,71244.0,0.014045]
[1770441747084,0.53066658,71265.0,71247.0,0.014045]
[1770441747282,0.53066658,71265.0,71241.0,0.57845223]
[1770441747481,0.53086658,71274.0,71250.0,0.57845223]
[1770441748285,0.01404,71273.0,71252.0,0.014044]
[1770441748685,0.53066658,71272.0,71252.0,0.014044]
[1770441749588,0.0002,71280.0,71240.0,0.21040189]
[1770441749589,0.54470558,71277.0,71254.0,0.014043]
[1770441749791,0.53066658,71273.0,71254.0,0.014043]
[1770441750284,0.53066658,71271.0,71250.0,0.014044]
[1770441750688,0.53066658,71271.0,71255.0,0.014043]
[1770441751790,0.53066658,71271.0,71251.0,0.014044]
[1770441751991,0.53066658,71271.0,71253.0,0.014043]
[1770441752184,0.53066658,71269.0,71249.0,0.014044]
[1770441752487,0.0002,71273.0,71251.0,0.59249623]
[1770441752791,0.0002,71273.0,71253.0,0.014043]
[1770441753288,0.54470658,71274.0,71253.0,0.014043]
[1770441753891,0.53066658,71274.0,71251.0,0.57845223]
[1770441754086,0.53066658,71274.0,71256.0,0.014043]
[1770441754291,0.53066658,71274.0,71239.0,0.28004092]
[1770441754292,0.53066658,71271.0,71245.0,0.21040189]
[1770441754497,0.53066658,71271.0,71235.0,0.57845223]
[1770441754498,0.53066658,71266.0,71247.0,0.014045]
[1770441754686,0.53066658,71266.0,71248.0,0.21087043]
[1770441754892,0.53066658,71266.0,71250.0,0.014044]
[1770441755591,0.53066658,71266.0,71246.0,0.014045]
[1770441755792,0.53066658,71266.0,71248.0,0.014044]
[1770441755991,0.53066658,71266.0,71253.0,0.014044]
[1770441756391,0.53066658,71266.0,71249.0,0.014044]
[1770441756696,0.53066658,71266.0,71238.0,0.2785128]
[1770441756697,0.57574691,71274.0,71254.0,0.014043]
[1770441757196,0.57574691,71274.0,71254.0,0.58308539]
[1770441757394,0.57554691,71274.0,71254.0,0.56904239]
[1770441757587,0.57554691,71274.0,71256.0,0.014043]
[1770441757788,0.57554691,71274.0,71261.0,0.014042]
[1770441758590,0.0002,71279.0,71261.0,0.014042]
[1770441758894,0.0002,71279.0,71253.0,0.21040189]
[1770441759098,0.0002,71279.0,71254.0,0.21085211]
[1770441759099,0.57554691,71270.0,71254.0,0.21085211]
[1770441759297,0.57554691,71278.0,71257.0,0.56904239]
[1770441759492,0.57554691,71278.0,71258.0,0.21085211]
[1770441759686,0.57554691,71278.0,71259.0,0.21085211]
[1770441759886,0.57554691,71278.0,71263.0,0.014041]
[1770441760290,0.014238,71281.0,71260.0,0.58308439]
[1770441760592,0.57554691,71280.0,71261.0,0.21084211]
[1770441760791,0.57554691,71280.0,71254.0,0.2785128]
[1770441760792,0.57554691,71276.0,71262.0,0.21084211]
[1770441760994,0.58958591,71276.0,71256.0,0.014043]
[1770441761292,0.57554691,71276.0,71257.0,0.22489675]
[1770441761501,0.57554691,71276.0,71258.0,0.77989614]
[1770441761700,0.57554691,71276.0,71262.0,0.014042]
[1770441761892,0.57554691,71276.0,71263.0,0.21085375]
[1770441762092,0.57554691,71276.0,71262.0,0.014042]
[1770441762293,0.57554691,71276.0,71263.0,0.21084239]
[1770441762495,0.57554691,71276.0,71262.0,0.014042]
[1770441762695,0.57554691,71276.0,71263.0,0.21084142]
[1770441762895,0.57554691,71276.0,71264.0,0.21084142]
[1770441763095,0.57554691,71276.0,71262.0,0.014042]
[1770441763492,0.57554691,71276.0,71266.0,0.014041]
[1770441763696,0.57554691,71276.0,71262.0,0.014042]
[1770441763897,0.57554691,71276.0,71263.0,0.21083284]
[1770441764095,0.57554691,71276.0,71262.0,0.014042]
[1770441764695,0.57554691,71276.0,71256.0,0.77944428]
[1770441764898,0.57554691,71276.0,71261.0,0.014042]
[1770441767013,0.57554691,71276.0,71262.0,0.21083727]
[1770441767208,0.57554691,71276.0,71261.0,0.014042]
[1770441768301,0.57554691,71276.0,71262.0,0.21083887]
[1770441768604,0.57554691,71276.0,71261.0,0.014042]
[1770441768804,0.57554691,71276.0,71262.0,0.21083882]
[1770441769004,0.57554691,71276.0,71261.0,0.014042]
[1770441769202,0.57554691,71276.0,71262.0,0.21083993]
[1770441769398,0.57554691,71276.0,71254.0,0.18086741]
[1770441769602,0.57554691,71272.0,71248.0,0.16682441]
[1770441770415,0.57554691,71272.0,71253.0,0.014043]
[1770441773007,0.57554691,71270.0,71250.0,0.16682441]
[1770441773505,0.57554691,71270.0,71253.0,0.014043]
[1770441774705,0.57574691,71275.0,71262.0,0.014042]
[1770441775007,0.57574691,71275.0,71255.0,0.18086741]
[1770441775199,0.57554691,71275.0,71257.0,0.014043]
[1770441775800,0.58958591,71275.0,71256.0,0.16682441]
[1770441776100,0.58958591,71275.0,71255.0,0.18086741]
[1770441776296,0.57554691,71275.0,71257.0,0.014043]
[1770441777108,0.58958591,71275.0,71255.0,0.16682441]
[1770441777305,0.57554691,71271.0,71255.0,0.16682441]
[1770441777511,0.57554691,71271.0,71252.0,0.16682441]
[1770441777710,0.57554691,71271.0,71253.0,0.014044]
[1770441778602,0.0002,71275.0,71246.0,0.20900249]
[1770441778804,0.57554691,71262.0,71244.0,0.22304749]
[1770441780003,0.57554691,71262.0,71244.0,0.20900249]
[1770441780198,0.57554691,71262.0,71242.0,0.20900249]
[1770441780398,0.57554691,71262.0,71241.0,0.20900249]
[1770441780808,0.57554691,71262.0,71241.0,0.014046]
[1770441781006,0.57554691,71260.0,71241.0,0.014046]
[1770441781405,0.57554691,71260.0,71242.0,0.21089511]
[1770441781703,0.57554691,71260.0,71241.0,0.014046]
[1770441781704,0.57554691,71260.0,71243.0,0.21089511]
[1770441781904,0.57554691,71260.0,71244.0,0.21089511]
[1770441782100,0.57554691,71260.0,71245.0,0.21089511]
[1770441782303,0.57554691,71260.0,71246.0,0.21089511]
[1770441782507,0.57554691,71260.0,71241.0,0.014046]
[1770441782703,0.57554691,71260.0,71242.0,0.210895]
[1770441782911,0.57554691,71253.0,71230.0,0.20900249]
[1770441783116,0.57554691,71253.0,71229.0,0.20900249]
[1770441783317,0.57554691,71253.0,71228.0,0.20900249]
[1770441783507,0.57554691,71253.0,71227.0,0.20900249]
[1770441784016,0.57554691,71253.0,71233.0,0.014047]
[1770441784812,0.57554691,71251.0,71229.0,0.014048]
[1770441785312,0.57554691,71249.0,71224.0,0.20900249]
[1770441785507,0.57554691,71245.0,71225.0,0.014049]
[1770441786319,0.54917706,71243.0,71221.0,0.01405]
[1770441786619,0.54917706,71241.0,71221.0,0.01405]
[1770441787811,0.0002,71256.0,71221.0,0.01405]
[1770441787812,0.54917706,71239.0,71221.0,0.01405]
[1770441788213,0.54917706,71239.0,71215.0,0.56904239]
[1770441788412,0.53229339,71247.0,71228.0,0.014048]
[1770441789417,0.53229339,71247.0,71225.0,0.014049]
[1770441789619,0.53229339,71245.0,71225.0,0.014049]
[1770441790212,0.53229339,71253.0,71226.0,0.5832499]
[1770441790817,0.53229339,71253.0,71229.0,0.5832499]
[1770441791322,0.53229339,71253.0,71240.0,0.014046]
[1770441791520,0.53229339,71253.0,71229.0,0.5832499]
[1770441792512,0.53229339,71253.0,71239.0,0.014046]
[1770441792918,0.53229339,71253.0,71242.0,0.014046]
[1770441793122,0.53229339,71262.0,71245.0,0.014045]
[1770441793326,0.53229339,71262.0,71244.0,0.014045]
[1770441794020,0.53229339,71262.0,71238.0,0.5832499]
[1770441794218,0.53229339,71262.0,71240.0,0.014046]
[1770441799515,0.53229339,71253.0,71225.0,0.20900249]
[1770441800018,0.53229339,71253.0,71223.0,0.5832499]
[1770441800218,0.53229339,71253.0,71223.0,0.69454502]
[1770441800423,0.53229339,71247.0,71223.0,0.5832499]
[1770441800627,0.53229339,71245.0,71224.0,0.014049]
[1770441801523,0.53229339,71243.0,71223.0,0.5832499]
[1770441802822,0.53229339,71241.0,71220.0,0.12534512]
[1770441803223,0.014047,71238.0,71219.0,0.11129512]
[1770441803525,0.53229339,71237.0,71218.0,0.11129512]
[1770441803928,0.53229339,71237.0,71216.0,0.12534612]
[1770441804421,0.53229339,71237.0,71216.0,0.014051]
[1770441804928,0.53229339,71237.0,71216.0,0.12534612]
[1770441807126,0.53229339,71237.0,71217.0,0.11129512]
[1770441807329,0.53229339,71237.0,71216.0,0.12534612]
[1770441808143,0.53229339,71237.0,71217.0,0.11129512]
[1770441808630,0.014047,71236.0,71217.0,0.11129512]
[1770441808826,0.53229339,71235.0,71217.0,0.11129512]
[1770441809026,0.53229339,71235.0,71216.0,0.014051]
[1770441809027,0.53229339,71233.0,71216.0,0.11129512]
[1770441810036,0.53229339,71233.0,71208.0,0.5832499]
[1770441810037,0.53229339,71226.0,71203.0,0.16717467]
[1770441810228,0.53229339,71226.0,71200.0,0.20900249]
[1770441810229,0.53229339,71216.0,71197.0,0.22305749]
[1770441810429,0.53229339,71216.0,71197.0,0.014055]
[1770441811237,0.53229339,71214.0,71189.0,0.59745611]
[1770441811532,0.53229339,71212.0,71192.0,0.014055]
[1770441812534,0.53229339,71212.0,71182.0,0.5832499]
[1770441812535,0.53229339,71212.0,71195.0,0.014055]
[1770441812928,0.53229339,71212.0,71191.0,0.014056]
[1770441813129,0.53229339,71212.0,71194.0,0.014055]
[1770441814740,0.53229339,71210.0,71186.0,0.014057]
[1770441814944,0.014049,71227.0,71186.0,0.014057]
[1770441814945,0.53229339,71207.0,71186.0,0.014057]
[1770441815234,0.53229339,71205.0,71182.0,0.014057]
[1770441815436,0.014053,71203.0,71182.0,0.014057]
[1770441815641,0.53229339,71202.0,71182.0,0.014057]
[1770441816334,0.084285,71235.0,71178.0,0.90892]
[1770441816335,0.53907397,71210.0,71194.0,0.014055]
[1770441816634,0.53907397,71210.0,71196.0,0.014055]
[1770441816942,0.53907397,71217.0,71196.0,0.5517394]
[1770441817632,0.53907397,71212.0,71186.0,0.5376844]
[1770441817835,0.53907397,71203.0,71179.0,0.5376844]
[1770441818036,0.53907397,71203.0,71181.0,0.5376844]
[1770441819433,0.53907397,71203.0,71185.0,0.014057]
[1770441819636,0.53907397,71203.0,71188.0,0.014056]
[1770441821945,0.53907397,71214.0,71192.0,0.014056]
[1770441822444,0.53907397,71214.0,71192.0,0.5517404]
[1770441823442,0.53907397,71214.0,71196.0,0.014055]
[1770441824944,0.53907397,71214.0,71199.0,0.014054]
[1770441825245,0.53907397,71214.0,71198.0,0.5376844]
[1770441825847,0.53907397,71214.0,71198.0,0.014054]
[1770441826241,0.53907397,71214.0,71201.0,0.014054]
[1770441826545,0.53907397,71214.0,71197.0,0.014054]
[1770441828237,0.55312397,71221.0,71199.0,0.5517384]
[1770441828749,0.53907397,71218.0,71199.0,0.014054]
[1770441829052,0.53907397,71216.0,71195.0,0.014055]
[1770441830447,0.53907397,71214.0,71195.0,0.014055]
[1770441831146,0.53907397,71214.0,71198.0,0.014054]
[1770441831844,0.53907397,71214.0,71195.0,0.014055]
[1770441833447,0.53907397,71214.0,71197.0,0.014054]
[1770441834546,0.53907397,71214.0,71200.0,0.014054]
[1770441834748,0.014049,71226.0,71203.0,0.014053]
[1770441834951,0.53907397,71225.0,71203.0,0.014053]
[1770441835346,0.53907397,71220.0,71201.0,0.014054]
[1770441836149,0.53907397,71220.0,71196.0,0.5376844]
[1770441836150,0.53907397,71220.0,71204.0,0.014053]
[1770441836949,0.53907397,71220.0,71206.0,0.014053]
[1770441839156,0.53907397,71220.0,71196.0,0.5376844]
[1770441839656,0.53907397,71220.0,71205.0,0.014053]
[1770441839858,0.53907397,71220.0,71201.0,0.014054]
[1770441843855,0.53907397,71215.0,71186.0,0.2785128]
[1770441844060,0.53907397,71215.0,71180.0,0.34935617]
[1770441844061,0.53907397,71204.0,71176.0,0.5376844]
[1770441844258,0.53907397,71198.0,71175.0,0.014059]
[1770441844756,0.014054,71199.0,71169.0,0.5376844]
[1770441844757,0.53907397,71196.0,71171.0,0.01406]
[1770441845064,0.53907397,71189.0,71161.0,0.5376844]
[1770441845260,0.53907397,71189.0,71163.0,0.014061]
[1770441845465,0.53907397,71184.0,71160.0,0.014062]
[1770441845763,0.53580463,71178.0,71156.0,0.014063]
[1770441846064,0.53580463,71176.0,71155.0,0.014063]
[1770441846265,0.53580463,71176.0,71140.0,0.2335]
[1770441846266,0.53580463,71172.0,71151.0,0.014063]
[1770441846466,0.54986463,71170.0,71143.0,0.014065]
[1770441847353,0.53580463,71159.0,71136.0,0.014067]
[1770441848055,0.54986663,71159.0,71132.0,0.014067]
[1770441848254,0.01406,71171.0,71144.0,0.014065]
[1770441848456,0.014057,71187.0,71144.0,0.014065]
[1770441848457,0.53580463,71168.0,71144.0,0.014065]
[1770441848860,0.5310116,71166.0,71139.0,0.014066]
[1770441849562,0.014061,71165.0,71139.0,0.014066]
[1770441849760,0.5310116,71164.0,71139.0,0.57093451]
[1770441849966,0.5310116,71171.0,71148.0,0.57093451]
[1770441850162,0.5310116,71171.0,71154.0,0.014063]
[1770441850462,0.20882711,71200.0,71146.0,0.014065]
[1770441850463,0.5320116,71166.0,71146.0,0.014065]
[1770441850762,0.5320116,71166.0,71142.0,0.014065]
[1770441851069,0.5320116,71166.0,71145.0,0.014065]
[1770441851566,0.5310116,71166.0,71145.0,0.014065]
[1770441852666,0.5310116,71166.0,71140.0,0.014066]
[1770441852867,0.5310116,71166.0,71143.0,0.014065]
[1770441855162,0.5310116,71176.0,71146.0,0.57093451]
[1770441855363,0.5310116,71174.0,71152.0,0.014063]
[1770441855867,0.5310116,71174.0,71148.0,0.014064]
[1770441856167,0.5310116,71169.0,71144.0,0.014065]
[1770441856668,0.5310116,71169.0,71147.0,0.014064]
[1770441856868,0.5310116,71166.0,71143.0,0.014065]
[1770441857463,0.5310116,71166.0,71137.0,0.57093451]
[1770441857967,0.5310116,71166.0,71145.0,0.014065]
[1770441858966,0.5310116,71189.0,71146.0,0.57093451]
[1770441859170,0.5310116,71199.0,71177.0,0.014058]
[1770441859561,0.5310116,71199.0,71180.0,0.014058]
[1770441859967,0.5310116,71199.0,71176.0,0.014059]
[1770441860167,0.5310116,71199.0,71182.0,0.014057]
[1770441862362,0.5310116,71199.0,71188.0,0.014056]
[1770441862557,0.5310116,71214.0,71194.0,0.014055]
[1770441862759,0.5310116,71214.0,71184.0,0.57093451]
[1770441862760,0.5310116,71214.0,71197.0,0.014054]
[1770441862963,0.5300116,71214.0,71197.0,0.014054]
[1770441863874,0.5300116,71214.0,71193.0,0.014055]
[1770441865065,0.5300116,71214.0,71196.0,0.014055]
[1770441865272,0.5300116,71214.0,71192.0,0.014055]
[1770441865471,0.5300116,71214.0,71195.0,0.014055]
[1770441866564,0.5300116,71214.0,71184.0,0.57093451]
[1770441866770,0.5300116,71214.0,71188.0,0.57093451]
[1770441867170,0.5300116,71214.0,71195.0,0.014055]
[1770441867772,0.5300116,71214.0,71198.0,0.014054]
[1770441868175,0.5300116,71214.0,71201.0,0.014054]
[1770441869074,0.5300116,71214.0,71197.0,0.014054]
[1770441869582,0.5300116,71214.0,71200.0,0.014054]
[1770441872772,0.5300116,71214.0,71188.0,0.57093451]
[1770441872773,0.5300116,71214.0,71175.0,0.57093451]
[1770441873072,0.014047,71235.0,71175.0,0.57093451]
[1770441873073,0.5310116,71208.0,71186.0,0.014057]
[1770441874277,0.5310116,71208.0,71182.0,0.014057]
[1770441874466,0.5310116,71208.0,71191.0,0.014056]
[1770441876880,0.5310116,71208.0,71187.0,0.014056]
[1770441877583,0.5310116,71208.0,71175.0,0.57093451]
[1770441878279,0.56784773,71206.0,71175.0,0.57093451]
[1770441879381,0.56784773,71206.0,71185.0,0.014057]
[1770441881079,0.56784773,71206.0,71187.0,0.014056]
[1770441883381,0.56784773,71206.0,71184.0,0.014057]
[1770441883681,0.56784773,71204.0,71184.0,0.014057]
[1770441885386,0.56784773,71204.0,71178.0,0.56861535]
[1770441885982,0.56784773,71197.0,71165.0,0.56861535]
[1770441886182,0.56784773,71195.0,71179.0,0.014058]
[1770441886484,0.56784773,71218.0,71186.0,0.56861535]
[1770441886782,0.58189873,71218.0,71193.0,0.014055]
[1770441886988,0.58189873,71218.0,71196.0,0.014055]
[1770441891196,0.56784773,71218.0,71196.0,0.014055]
[1770441892690,0.56784773,71218.0,71176.0,0.2785128]
[1770441892691,0.56784773,71204.0,71169.0,0.2790329]
[1770441892994,0.56784773,71204.0,71147.0,0.98371553]
[1770441892995,0.03934587,71171.0,71147.0,0.56861535]
[1770441893388,0.03416289,71167.0,71137.0,0.5719457]
[1770441893700,0.03416289,71167.0,71141.0,0.014066]
[1770441893998,0.03416289,71165.0,71138.0,0.014066]
[1770441894202,0.03416289,71164.0,71138.0,0.5860117]
[1770441895291,0.01406,71171.0,71146.0,0.5860107]
[1770441895798,0.13641112,71171.0,71146.0,0.5860107]
[1770441896197,0.13641112,71171.0,71146.0,0.5719457]
[1770441897198,0.12235112,71171.0,71149.0,0.56861535]
[1770441901605,0.10146924,71170.0,71149.0,0.56861535]
[1770441902405,0.08740924,71166.0,71142.0,0.56861535]
[1770441902699,0.13840831,71190.0,71114.0,0.014071]
[1770441902700,0.09040924,71139.0,71114.0,0.014071]
[1770441902908,0.09040924,71131.0,71104.0,0.014073]
[1770441903111,0.09040924,71131.0,71103.0,0.56861535]
[1770441903302,0.09843893,71129.0,71103.0,0.56861535]
[1770441904001,0.014068,71127.0,71103.0,0.56861535]
[1770441904406,0.09843893,71122.0,71094.0,0.56861535]
[1770441904608,0.11250893,71120.0,71094.0,0.56861535]
[1770441906208,0.014071,71116.0,71094.0,0.56861535]
[1770441906505,0.11218861,71113.0,71085.0,0.55667999]
[1770441906702,0.11218861,71113.0,71090.0,0.55667999]
[1770441909802,0.014069,71124.0,71092.0,0.5818683]
[1770441910202,0.014069,71124.0,71099.0,0.5818683]
[1770441910598,0.01407,71121.0,71099.0,0.5818683]
[1770441910803,0.11406716,71121.0,71099.0,0.5818683]
[1770441911511,0.01407,71121.0,71099.0,0.5818683]
[1770441913508,0.09854154,71155.0,71112.0,0.5818683]
[1770441913714,0.014067,71134.0,71112.0,0.5818683]
[1770441914413,0.09854154,71145.0,71112.0,0.5959393]
[1770441915207,0.09854154,71145.0,71116.0,0.5818683]
[1770441915407,0.014065,71143.0,71116.0,0.5818683]
[1770441915708,0.014065,71143.0,71115.0,0.014071]
[1770441915709,0.09854154,71145.0,71118.0,0.5818683]
[1770441916115,0.10792344,71154.0,71130.0,0.5818683]
[1770441916425,0.001,71145.0,71130.0,0.5818683]
[1770441917318,0.10699476,71163.0,71130.0,0.5959363]
[1770441917718,0.10699476,71163.0,71138.0,0.5818683]
[1770441918018,0.10699476,71163.0,71140.0,0.5818683]
[1770441918216,0.01406,71170.0,71142.0,0.5818683]
[1770441918916,0.014058,71178.0,71153.0,0.5818683]
[1770441919627,0.001,71163.0,71153.0,0.5818683]
[1770441920018,0.014062,71162.0,71137.0,0.5818683]
[1770441920218,0.11816505,71162.0,71137.0,0.5818683]
[1770441921420,0.014062,71159.0,71137.0,0.5818683]
[1770441922520,0.09653654,71159.0,71084.0,0.5818683]
[1770441922716,0.11060554,71126.0,71098.0,0.5818683]
[1770441923019,0.09653654,71119.0,71095.0,0.0002]
[1770441923720,0.01407,71120.0,71092.0,0.5959433]
[1770441924222,0.014071,71117.0,71092.0,0.5959433]
[1770441924422,0.01407,71121.0,71092.0,0.5959433]
[1770441924923,0.01407,71117.0,71092.0,0.5959433]
[1770441925813,0.13855896,71140.0,71021.0,0.34935617]
[1770441926122,0.55966533,71204.0,70898.0,0.41901972]
[1770441926123,0.070468,71002.0,70898.0,0.41901972]
[1770441926310,0.13855896,70910.0,70889.0,0.21171899]
[1770441926511,0.53399952,70946.0,70883.0,0.5818683]
[1770441926721,0.13855896,70930.0,70883.0,0.5818683]
[1770441927022,0.53399952,70935.0,70885.0,0.5818683]
[1770441927326,0.53399952,70944.0,70887.0,0.5818683]
[1770441927622,0.014107,70933.0,70889.0,0.5768683]
[1770441927819,0.53399952,70923.0,70883.0,0.21171899]
[1770441928224,0.13943902,70960.0,70882.0,1.38311566]
[1770441928225,0.014112,70909.0,70884.0,9.9e-07]
[1770441928421,0.014113,70901.0,70882.0,0.15703165]
[1770441928614,0.014115,70892.0,70863.0,0.5818683]
[1770441928813,0.014113,70902.0,70863.0,0.5818683]
[1770441929020,0.014115,70892.0,70863.0,0.5788683]
[1770441929217,0.014111,70911.0,70863.0,0.5788683]
[1770441929423,0.014107,70932.0,70871.0,0.5818683]
[1770441929615,0.13943902,70980.0,70891.0,0.5818683]
[1770441929616,0.014103,70951.0,70891.0,0.5818683]
[1770441929809,0.014103,70951.0,70890.0,0.13943902]
[1770441929810,0.014103,70954.0,70893.0,0.5818683]
[1770441930022,0.014099,70972.0,70911.0,0.5818683]
[1770441930221,0.014099,70972.0,70882.0,0.070587]
[1770441930222,0.53399952,70938.0,70899.0,0.5818683]
[1770441930422,0.070492,70978.0,70872.0,0.5818683]
[1770441930423,0.53399952,70916.0,70872.0,0.5818683]
[1770441930724,0.54810852,70922.0,70872.0,0.5818683]
[1770441930915,0.13943902,70950.0,70872.0,0.5818683]
[1770441930916,4.108e-05,70921.0,70872.0,0.5818683]
[1770441931115,0.01411,70917.0,70872.0,0.5818683]
[1770441931318,0.01411,70917.0,70839.0,0.070629]
[1770441931319,0.014117,70882.0,70851.0,0.5929631]
[1770441931521,0.014115,70891.0,70851.0,0.5929631]
[1770441931822,0.014118,70876.0,70851.0,0.5929631]
[1770441932024,0.014116,70885.0,70851.0,0.5929631]
[1770441932219,0.53399952,70890.0,70851.0,0.5929631]
[1770441932415,0.014116,70889.0,70851.0,0.5929631]
[1770441933026,0.014108,70926.0,70851.0,0.5929631]
[1770441933027,0.014116,70887.0,70851.0,0.5929631]
[1770441933419,0.014119,70875.0,70851.0,0.5929631]
[1770441933620,0.014115,70894.0,70874.0,0.0002]
[1770441933826,0.014115,70894.0,70863.0,0.5818683]
[1770441934013,0.014114,70897.0,70863.0,0.5818683]
[1770441934219,0.014114,70896.0,70863.0,0.5818683]
[1770441934716,0.014114,70896.0,70863.0,0.5820683]
[1770441934917,0.070566,70904.0,70863.0,0.5820683]
[1770441935623,0.070575,70894.0,70863.0,0.5820683]
[1770441935820,0.014118,70880.0,70863.0,3e-07]
[1770441936023,0.014116,70889.0,70863.0,3e-07]
[1770441936223,0.070585,70885.0,70863.0,3e-07]
[1770441936428,0.014118,70877.0,70863.0,3e-07]
[1770441937025,0.57122241,70884.0,70863.0,3e-07]
[1770441937325,0.014115,70891.0,70863.0,0.57735312]
[1770441937529,0.07057,70900.0,70863.0,0.57735312]
[1770441937530,0.014114,70900.0,70863.0,0.57735312]
[1770441939036,0.01411,70916.0,70881.0,0.57735282]
[1770441939324,0.01411,70916.0,70863.0,3e-07]
[1770441939325,0.57122241,70944.0,70901.0,0.57735282]
[1770441939519,0.070535,70935.0,70901.0,0.57730282]
[1770441939728,0.014108,70926.0,70901.0,0.57730282]
[1770441940029,0.014109,70922.0,70887.0,0.57735282]
[1770441940620,0.58533141,70922.0,70887.0,0.57735282]
[1770441940829,0.014108,70930.0,70887.0,0.57735282]
[1770441941127,0.014108,70927.0,70887.0,0.57735282]
[1770441941432,0.014107,70934.0,70887.0,0.57735282]
[1770441941621,0.070538,70932.0,70887.0,0.57735282]
[1770441941825,0.014109,70922.0,70889.0,0.57735282]
[1770441943134,0.63873441,70958.0,70900.0,0.13943902]
[1770441943431,0.014106,70940.0,70901.0,0.57735282]
[1770441943620,0.014104,70947.0,70903.0,0.57735282]
[1770441943826,0.070504,70966.0,70907.0,0.57735282]
[1770441944026,0.014104,70950.0,70907.0,0.57735282]
[1770441944423,0.070506,70964.0,70907.0,0.57735282]
[1770441945326,0.014104,70950.0,70909.0,0.57735282]
[1770441945726,0.070506,70964.0,70909.0,0.57735282]
[1770441946027,0.014098,70981.0,70909.0,0.57735282]
[1770441946028,0.64174341,70949.0,70909.0,0.57735282]
[1770441946227,0.57122241,70944.0,70911.0,0.0002]
[1770441947027,0.014098,70981.0,70912.0,0.57735282]
[1770441947028,0.57122241,70960.0,70912.0,0.57735282]
[1770441947238,0.57122241,70960.0,70921.0,0.57735282]
[1770441947532,0.014103,70951.0,70921.0,0.57735282]
[1770441947930,0.070504,70966.0,70921.0,0.57735282]
[1770441948229,0.64172641,70966.0,70921.0,0.57735282]
[1770441949132,0.014103,70952.0,70921.0,0.57735282]
[1770441949532,0.64172641,70966.0,70921.0,0.57735282]
[1770441949729,0.014101,70962.0,70923.0,0.57735282]
[1770441949932,0.014101,70962.0,70926.0,0.57735282]
[1770441950133,0.57122241,70978.0,70926.0,0.57735282]
[1770441951032,0.57122241,70978.0,70929.0,0.57735282]
[1770441951634,0.0141,70968.0,70935.0,0.57735282]
[1770441951933,0.014099,70973.0,70938.0,0.57735282]
[1770441952133,0.57122241,70990.0,70942.0,0.57735282]
[1770441952331,0.57122241,70990.0,70944.0,0.57735282]